Workbook

Sheet Simple Data
A1: Time | B1: Low Light Test | C1: Current LED | D1: Measured Value | E1: READING
A2: 12:19:46 | B2: 1 | C2: 3 | D2: 118
A3: 12:19:46 | B3: 1 | C3: 2 | D3: 48
A4: 12:19:47 | B4: 1 | C4: 1 | D4: 50
A5: 12:19:47 | B5: 1 | C5: 0 | D5: 50
A6: 12:19:47 | B6: 1 | C6: 1 | D6: 51
A7: 12:19:47 | B7: 1 | C7: 2 | D7: 51
A8: 12:19:47 | B8: 1 | C8: 3 | D8: 54
A9: 12:19:48 | B9: 1 | C9: 4 | D9: 57
A10: 12:19:48 | B10: 1 | C10: 5 | D10: 63
A11: 12:19:48 | B11: 1 | C11: 6 | D11: 66
A12: 12:19:48 | B12: 1 | C12: 7 | D12: 67
A13: 12:19:48 | B13: 1 | C13: 8 | D13: 68
A14: 12:19:49 | B14: 1 | C14: 7 | D14: 68
A15: 12:19:49 | B15: 1 | C15: 6 | D15: 68
A16: 12:19:49 | B16: 1 | C16: 5 | D16: 68
A17: 12:19:49 | B17: 1 | C17: 4 | D17: 68
A18: 12:19:49 | B18: 1 | C18: 3 | D18: 68
A19: 12:19:50 | B19: 1 | C19: 2 | D19: 67
A20: 12:19:50 | B20: 1 | C20: 1 | D20: 68
A21: 12:19:50 | B21: 1 | C21: 0 | D21: 68
A22: 12:19:50 | B22: 1 | C22: 1 | D22: 68
A23: 12:19:50 | B23: 1 | C23: 2 | D23: 68
A24: 12:19:51 | B24: 1 | C24: 3 | D24: 70
A25: 12:19:51 | B25: 1 | C25: 4 | D25: 70
A26: 12:19:51 | B26: 1 | C26: 5 | D26: 70
A27: 12:19:51 | B27: 1 | C27: 6 | D27: 70
A28: 12:19:51 | B28: 1 | C28: 7 | D28: 70
A29: 12:19:52 | B29: 1 | C29: 8 | D29: 68
A30: 12:19:52 | B30: 1 | C30: 7 | D30: 70
A31: 12:19:52 | B31: 1 | C31: 6 | D31: 70
A32: 12:19:52 | B32: 1 | C32: 5 | D32: 70
A33: 12:19:52 | B33: 1 | C33: 4 | D33: 70
A34: 12:19:53 | B34: 1 | C34: 3 | D34: 70
A35: 12:19:53 | B35: 1 | C35: 2 | D35: 70
A36: 12:19:53 | B36: 1 | C36: 1 | D36: 70
A37: 12:19:53 | B37: 1 | C37: 0 | D37: 70
A38: 12:19:53 | B38: 1 | C38: 1 | D38: 70
A39: 12:19:54 | B39: 1 | C39: 2 | D39: 70
A40: 12:19:54 | B40: 1 | C40: 3 | D40: 70
A41: 12:19:54 | B41: 1 | C41: 4 | D41: 70
A42: 12:19:54 | B42: 1 | C42: 5 | D42: 70
A43: 12:19:55 | B43: 1 | C43: 6 | D43: 70
A44: 12:19:55 | B44: 1 | C44: 7 | D44: 70
A45: 12:19:55 | B45: 1 | C45: 8 | D45: 70
A46: 12:19:55 | B46: 1 | C46: 7 | D46: 70
A47: 12:19:55 | B47: 1 | C47: 6 | D47: 70
A48: 12:19:56 | B48: 1 | C48: 5 | D48: 70
A49: 12:19:56 | B49: 1 | C49: 4 | D49: 70
A50: 12:19:56 | B50: 1 | C50: 3 | D50: 70
A51: 12:19:56 | B51: 1 | C51: 2 | D51: 70
A52: 12:19:56 | B52: 1 | C52: 1 | D52: 70
A53: 12:19:57 | B53: 1 | C53: 0 | D53: 70
A54: 12:19:57 | B54: 1 | C54: 1 | D54: 68
A55: 12:19:57 | B55: 1 | C55: 2 | D55: 70
A56: 12:19:57 | B56: 1 | C56: 3 | D56: 70
A57: 12:19:57 | B57: 1 | C57: 4 | D57: 70
A58: 12:19:58 | B58: 1 | C58: 5 | D58: 70
A59: 12:19:58 | B59: 1 | C59: 6 | D59: 70
A60: 12:19:58 | B60: 1 | C60: 7 | D60: 70
A61: 12:19:58 | B61: 1 | C61: 8 | D61: 70
A62: 12:19:58 | B62: 1 | C62: 7 | D62: 68
A63: 12:19:59 | B63: 1 | C63: 6 | D63: 70
A64: 12:19:59 | B64: 1 | C64: 5 | D64: 70
A65: 12:19:59 | B65: 1 | C65: 4 | D65: 70
A66: 12:19:59 | B66: 1 | C66: 3 | D66: 67
A67: 12:19:59 | B67: 1 | C67: 2 | D67: 70
A68: 12:20:00 | B68: 1 | C68: 1 | D68: 70
A69: 12:20:00 | B69: 1 | C69: 0 | D69: 70
A70: 12:20:00 | B70: 1 | C70: 1 | D70: 70
A71: 12:20:00 | B71: 1 | C71: 2 | D71: 70
A72: 12:20:00 | B72: 1 | C72: 3 | D72: 70
A73: 12:20:01 | B73: 1 | C73: 4 | D73: 70
A74: 12:20:01 | B74: 1 | C74: 5 | D74: 70
A75: 12:20:01 | B75: 1 | C75: 6 | D75: 68
A76: 12:20:01 | B76: 1 | C76: 7 | D76: 70
A77: 12:20:02 | B77: 1 | C77: 8 | D77: 70
A78: 12:20:02 | B78: 1 | C78: 7 | D78: 70
A79: 12:20:02 | B79: 1 | C79: 6 | D79: 71
A80: 12:20:02 | B80: 1 | C80: 5 | D80: 71
A81: 12:20:02 | B81: 1 | C81: 4 | D81: 71
A82: 12:20:03 | B82: 1 | C82: 3 | D82: 71
A83: 12:20:03 | B83: 1 | C83: 2 | D83: 71
A84: 12:20:03 | B84: 1 | C84: 1 | D84: 70
A85: 12:20:03 | B85: 1 | C85: 0 | D85: 70
A86: 12:20:03 | B86: 1 | C86: 1 | D86: 70
A87: 12:20:04 | B87: 1 | C87: 2 | D87: 70
A88: 12:20:04 | B88: 1 | C88: 3 | D88: 70
A89: 12:20:04 | B89: 1 | C89: 4 | D89: 70
A90: 12:20:04 | B90: 1 | C90: 5 | D90: 70
A91: 12:20:04 | B91: 1 | C91: 6 | D91: 70
A92: 12:20:05 | B92: 1 | C92: 7 | D92: 70
A93: 12:20:05 | B93: 1 | C93: 8 | D93: 70
A94: 12:20:05 | B94: 1 | C94: 7 | D94: 70
A95: 12:20:05 | B95: 1 | C95: 6 | D95: 70
A96: 12:20:05 | B96: 1 | C96: 5 | D96: 70
A97: 12:20:06 | B97: 1 | C97: 4 | D97: 70
A98: 12:20:06 | B98: 1 | C98: 3 | D98: 70
A99: 12:20:06 | B99: 1 | C99: 2 | D99: 70
A100: 12:20:06 | B100: 1 | C100: 1 | D100: 70
A101: 12:20:06 | B101: 1 | C101: 0 | D101: 70
A102: 12:20:07 | B102: 1 | C102: 1 | D102: 70
A103: 12:20:07 | B103: 1 | C103: 2 | D103: 70
A104: 12:20:07 | B104: 1 | C104: 3 | D104: 70
A105: 12:20:07 | B105: 1 | C105: 4 | D105: 68
A106: 12:20:07 | B106: 1 | C106: 5 | D106: 70
A107: 12:20:08 | B107: 1 | C107: 6 | D107: 70
A108: 12:20:08 | B108: 1 | C108: 7 | D108: 68
A109: 12:20:08 | B109: 1 | C109: 8 | D109: 70
A110: 12:20:08 | B110: 1 | C110: 7 | D110: 70
A111: 12:20:08 | B111: 1 | C111: 6 | D111: 70
A112: 12:20:09 | B112: 1 | C112: 5 | D112: 70
A113: 12:20:09 | B113: 1 | C113: 4 | D113: 70
A114: 12:20:09 | B114: 1 | C114: 3 | D114: 70
A115: 12:20:09 | B115: 1 | C115: 2 | D115: 70
A116: 12:20:10 | B116: 1 | C116: 1 | D116: 68
A117: 12:20:10 | B117: 1 | C117: 0 | D117: 70
A118: 12:20:10 | B118: 1 | C118: 1 | D118: 70
A119: 12:20:10 | B119: 1 | C119: 2 | D119: 68
A120: 12:20:10 | B120: 1 | C120: 3 | D120: 68
A121: 12:20:11 | B121: 1 | C121: 4 | D121: 70
A122: 12:20:11 | B122: 1 | C122: 5 | D122: 70
A123: 12:20:11 | B123: 1 | C123: 6 | D123: 70
A124: 12:20:11 | B124: 1 | C124: 7 | D124: 70
A125: 12:20:11 | B125: 1 | C125: 8 | D125: 68
A126: 12:20:12 | B126: 1 | C126: 7 | D126: 68
A127: 12:20:12 | B127: 1 | C127: 6 | D127: 70
A128: 12:20:12 | B128: 1 | C128: 5 | D128: 70
A129: 12:20:12 | B129: 1 | C129: 4 | D129: 68
A130: 12:20:12 | B130: 1 | C130: 3 | D130: 70
A131: 12:20:13 | B131: 1 | C131: 2 | D131: 70
A132: 12:20:13 | B132: 1 | C132: 1 | D132: 70
A133: 12:20:13 | B133: 1 | C133: 0 | D133: 70
A134: 12:20:13 | B134: 1 | C134: 1 | D134: 70
A135: 12:20:13 | B135: 1 | C135: 2 | D135: 68
A136: 12:20:14 | B136: 1 | C136: 3 | D136: 70
A137: 12:20:14 | B137: 1 | C137: 4 | D137: 70
A138: 12:20:14 | B138: 1 | C138: 5 | D138: 70
A139: 12:20:14 | B139: 1 | C139: 6 | D139: 70
A140: 12:20:14 | B140: 1 | C140: 7 | D140: 70
A141: 12:20:15 | B141: 1 | C141: 8 | D141: 70
A142: 12:20:15 | B142: 1 | C142: 7 | D142: 70
A143: 12:20:15 | B143: 1 | C143: 6 | D143: 70
A144: 12:20:15 | B144: 1 | C144: 5 | D144: 70
A145: 12:20:16 | B145: 1 | C145: 4 | D145: 70
A146: 12:20:16 | B146: 1 | C146: 3 | D146: 70
A147: 12:20:16 | B147: 1 | C147: 2 | D147: 70
A148: 12:20:16 | B148: 1 | C148: 1 | D148: 70
A149: 12:20:16 | B149: 1 | C149: 0 | D149: 70
A150: 12:20:17 | B150: 1 | C150: 1 | D150: 71
A151: 12:20:17 | B151: 1 | C151: 2 | D151: 70
A152: 12:20:17 | B152: 1 | C152: 3 | D152: 68
A153: 12:20:17 | B153: 1 | C153: 4 | D153: 70
A154: 12:20:17 | B154: 1 | C154: 5 | D154: 70
A155: 12:20:18 | B155: 1 | C155: 6 | D155: 70
A156: 12:20:18 | B156: 1 | C156: 7 | D156: 70
A157: 12:20:18 | B157: 1 | C157: 8 | D157: 70
A158: 12:20:18 | B158: 1 | C158: 7 | D158: 70
A159: 12:20:18 | B159: 1 | C159: 6 | D159: 70
A160: 12:20:19 | B160: 1 | C160: 5 | D160: 70
A161: 12:19:38 | B161: 1 | C161: 3 | D161: 58
A162: 12:19:39 | B162: 1 | C162: 4 | D162: 51
A163: 12:19:39 | B163: 1 | C163: 5 | D163: 46
A164: 12:19:39 | B164: 1 | C164: 6 | D164: 41
A165: 12:19:39 | B165: 1 | C165: 7 | D165: 32
A166: 12:19:39 | B166: 1 | C166: 8 | D166: 23
A167: 12:19:39 | B167: 0 | C167: 7 | D167: 20
A168: 12:19:40 | B168: 0 | C168: 6 | D168: 20
A169: 12:19:40 | B169: 0 | C169: 5 | D169: 20
A170: 12:19:40 | B170: 0 | C170: 4 | D170: 19
A171: 12:19:40 | B171: 0 | C171: 3 | D171: 19
A172: 12:19:40 | B172: 0 | C172: 2 | D172: 19
A173: 12:19:40 | B173: 0 | C173: 1 | D173: 19
A174: 12:19:41 | B174: 0 | C174: 0 | D174: 19
A175: 12:19:41 | B175: 0 | C175: 1 | D175: 19
A176: 12:19:41 | B176: 0 | C176: 2 | D176: 19
A177: 12:19:41 | B177: 0 | C177: 3 | D177: 18
A178: 12:19:41 | B178: 0 | C178: 4 | D178: 20
A179: 12:19:41 | B179: 0 | C179: 5 | D179: 18
A180: 12:19:42 | B180: 0 | C180: 6 | D180: 19
A181: 12:19:42 | B181: 0 | C181: 7 | D181: 19
A182: 12:19:42 | B182: 0 | C182: 8 | D182: 19
A183: 12:19:42 | B183: 1 | C183: 7 | D183: 33
A184: 12:19:42 | B184: 1 | C184: 6 | D184: 101
A185: 12:19:43 | B185: 1 | C185: 5 | D185: 181
A186: 12:19:43 | B186: 1 | C186: 4 | D186: 182
A187: 12:19:43 | B187: 1 | C187: 3 | D187: 181
A188: 12:19:44 | B188: 1 | C188: 2 | D188: 152
A189: 12:19:44 | B189: 1 | C189: 1 | D189: 48
A190: 12:19:44 | B190: 1 | C190: 0 | D190: 31
A191: 12:19:44 | B191: 1 | C191: 1 | D191: 29
A192: 12:19:44 | B192: 1 | C192: 2 | D192: 36
A193: 12:19:45 | B193: 1 | C193: 3 | D193: 39
A194: 12:19:45 | B194: 1 | C194: 4 | D194: 45
A195: 12:19:45 | B195: 1 | C195: 5 | D195: 46
A196: 12:19:45 | B196: 1 | C196: 6 | D196: 47
A197: 12:19:45 | B197: 1 | C197: 7 | D197: 51
A198: 12:19:45 | B198: 1 | C198: 8 | D198: 53
A199: 12:19:46 | B199: 1 | C199: 7 | D199: 54
A200: 12:19:46 | B200: 1 | C200: 6 | D200: 54
... 2 more rows

Sheet Sheet1
B1: Linkit One - Live Data monitored in Excel and displayed using a Dashboard
K4: Value | L4: Degs | N4: x | O4: y
B5: Widget Main Title | D5: Dial 1 - Average | J5: Min | K5: =D11 -> 0 | L5: 0 | N5: =50-(50*COS(RADIANS(L7))) -> 4.079268902 | O5: =50*SIN(RADIANS(L7)) -> 19.78096194
J6: Max | K6: =D13 -> 500 | L6: 180 | N6: =50-(2*COS(RADIANS(L7+90))) -> 50.79123848 | O6: =2*SIN(RADIANS(L7+90)) -> 1.836829244
B7: Widget Units | J7: Actual | K7: =D9 -> 64.735 | L7: =((K7-K5)/(K6-K5))*180 -> 23.3046 | N7: =50-(2*COS(RADIANS(L7-90))) -> 49.20876152 | O7: =2*SIN(RADIANS(L7-90)) -> -1.836829244
J8: Scale1 | K8: =((K6-K5)/5)+K5 -> 100 | N8: =N5 -> 4.079268902 | O8: =O5 -> 19.78096194
B9: Actual Value | D9: =AVERAGE('Simple Data'!D2:D201) -> 64.735 | J9: Scale2 | K9: =((K6-K5)*2/5)+K5 -> 200 | N9: 50 | O9: 0
J10: Scale3 | K10: =((K6-K5)*3/5) + K5 -> 300
B11: Minimum Value | D11: 0 | J11: Scale4 | K11: =((K6-K5)*4/5) + K5 -> 400
B13: Maximum Value | D13: 500
K18: Value | L18: Degs | N18: x | O18: y
B19: Widget Main Title | D19: Dial 2 - Max | J19: Min | K19: =D25 -> 0 | L19: 0 | N19: =50-(50*COS(RADIANS(L21))) -> 78.70609961 | O19: =50*SIN(RADIANS(L21)) -> 40.93848855
J20: Max | K20: =D23+80 -> 262 | L20: 180 | N20: =50-(2*COS(RADIANS(L21+90))) -> 51.63753954 | O20: =2*SIN(RADIANS(L21+90)) -> -1.148243985
B21: Widget Units | J21: Actual | K21: =D23 -> 182 | L21: =((K21-K19)/(K20-K19))*180 -> 125.0381679 | N21: =50-(2*COS(RADIANS(L21-90))) -> 48.36246046 | O21: =2*SIN(RADIANS(L21-90)) -> 1.148243985
J22: Scale1 | K22: =((K20-K19)/5)+K19 -> 52.4 | N22: =N19 -> 78.70609961 | O22: =O19 -> 40.93848855
B23: Actual Value | D23: =MAX('Simple Data'!D16:D215) -> 182 | J23: Scale2 | K23: =((K20-K19)*2/5)+K19 -> 104.8 | N23: 50 | O23: 0
J24: Scale3 | K24: =((K20-K19)*3/5) + K19 -> 157.2
B25: Minimum Value | D25: 0 | J25: Scale4 | K25: =((K20-K19)*4/5) + K19 -> 209.6
B27: Maximum Value | D27: 700
K32: Value | L32: Degs | N32: x | O32: y
B33: Widget Main Title | D33: Dial 3 - Min | J33: Min | K33: -25 | L33: 0 | N33: =50-(50*COS(RADIANS(L35))) -> 8.744325086 | O33: =50*SIN(RADIANS(L35)) -> 28.24835017
J34: Max | K34: 200 | L34: 180 | N34: =50-(2*COS(RADIANS(L35+90))) -> 51.12993401 | O34: =2*SIN(RADIANS(L35+90)) -> 1.650226997
B35: Widget Units | J35: Actual | K35: =D37 -> 18 | L35: =((K35-K33)/(K34-K33))*180 -> 34.4 | N35: =50-(2*COS(RADIANS(L35-90))) -> 48.87006599 | O35: =2*SIN(RADIANS(L35-90)) -> -1.650226997
J36: Scale1 | K36: =((K34-K33)/5)+K33 -> 20 | N36: =N33 -> 8.744325086 | O36: =O33 -> 28.24835017
B37: Actual Value | D37: =MIN('Simple Data'!D30:D229) -> 18 | J37: Scale2 | K37: =((K34-K33)*2/5)+K33 -> 65 | N37: 50 | O37: 0
J38: Scale3 | K38: =((K34-K33)*3/5) + K33 -> 110
B39: Minimum Value | D39: 0 | J39: Scale4 | K39: =((K34-K33)*4/5) + K33 -> 155
B41: Maximum Value | D41: 100
C44: Chart 1 - Monitored value
C50: I) Trend Widget
C52: Date | D52: 1 | E52: =D52+1 -> 2 | F52: 3 | G52: 4 | H52: 5 | I52: 6 | J52: 7 | K52: 8 | L52: 9 | M52: 10 | N52: 11 | O52: 12 | P52: 13 | Q52: 14 | R52: 15 | S52: 16 | T52: 17 | U52: 18 | V52: 19 | W52: 20 | X52: 21 | Y52: 22 | Z52: 23 | AA52: 24 | AB52: 25 | AC52: 26 | AD52: 27 | AE52: 28 | AF52: 29 | AG52: 30 | AH52: 31 | AI52: 32 | AJ52: 33 | AK52: 34 | AL52: 35 | AM52: 36 | AN52: 37 | AO52: 38 | AP52: 39 | AQ52: 40 | AR52: 41 | AS52: 42 | AT52: 43 | AU52: 44 | AV52: 45 | AW52: 46 | AX52: 47 | AY52: 48 | AZ52: 49 | BA52: 50 | BB52: 51 | BC52: 52 | BD52: 53 | BE52: 54 | BF52: 55 | BG52: 56 | BH52: 57 | BI52: 58 | BJ52: 59 | BK52: 60 | BL52: 61 | BM52: 62 | BN52: 63 | BO52: 64
C53: Value | D53: 20 | E53: =D53+(RAND()-0.3) -> 20.66302887 | F53: 21.30470473 | G53: 21.0218735 | H53: 21.03397749 | I53: 21.45516179 | J53: 21.15617806 | K53: 21.08568608 | L53: 21.00566386 | M53: 21.22642936 | N53: 21.21352307 | O53: 21.10935448 | P53: 21.58728431 | Q53: 21.51484976 | R53: 21.88035968 | S53: 21.73357751 | T53: 22.08009357 | U53: 22.57807978 | V53: 23.028832 | W53: 23.50288844 | X53: 23.71785842 | Y53: 23.76806956 | Z53: 24.30870524 | AA53: 24.12066437 | AB53: 23.8442366 | AC53: 24.16881087 | AD53: 24.12393423 | AE53: 24.59646782 | AF53: 24.75045613 | AG53: 24.64084264 | AH53: 25.19380963 | AI53: 25.76031477 | AJ53: 25.73820115 | AK53: 25.81437499 | AL53: 26.07572923 | AM53: 26.59164476 | AN53: 27.09047064 | AO53: 27.48915998 | AP53: 27.92398565 | AQ53: 28.11061246 | AR53: 28.39171366 | AS53: 28.90999226 | AT53: 28.73718851 | AU53: 29.41813007 | AV53: 29.40877224 | AW53: 29.28665765 | AX53: 29.20972563 | AY53: 29.20802979 | AZ53: 29.11013642 | BA53: 29.42364615 | BB53: 29.66715225 | BC53: 29.54630186 | BD53: 29.42719414 | BE53: 29.42819775 | BF53: 29.68490414 | BG53: 29.91572272 | BH53: 29.70737754 | BI53: 29.79648028 | BJ53: 29.99765758 | BK53: 30.29842186 | BL53: 30.74058882 | BM53: 31.30591141 | BN53: 31.77025139 | BO53: 32.26902232
D56: X | E56: y
D57: 1 | E57: ='Simple Data'!$D2 -> 118
D58: 2 | E58: ='Simple Data'!$D3 -> 48
D59: 3 | E59: ='Simple Data'!$D4 -> 50
D60: 4 | E60: ='Simple Data'!$D5 -> 50
D61: 5 | E61: ='Simple Data'!$D6 -> 51
D62: 6 | E62: ='Simple Data'!$D7 -> 51
D63: 7 | E63: ='Simple Data'!$D8 -> 54
D64: 8 | E64: ='Simple Data'!$D9 -> 57
D65: 9 | E65: ='Simple Data'!$D10 -> 63
D66: 10 | E66: ='Simple Data'!$D11 -> 66
D67: 11 | E67: ='Simple Data'!$D12 -> 67
D68: 12 | E68: ='Simple Data'!$D13 -> 68
D69: 13 | E69: ='Simple Data'!$D14 -> 68
D70: 14 | E70: ='Simple Data'!$D15 -> 68
D71: 15 | E71: ='Simple Data'!$D16 -> 68
D72: 16 | E72: ='Simple Data'!$D17 -> 68
D73: 17 | E73: ='Simple Data'!$D18 -> 68
D74: 18 | E74: ='Simple Data'!$D19 -> 67
D75: 19 | E75: ='Simple Data'!$D20 -> 68
D76: 20 | E76: ='Simple Data'!$D21 -> 68
D77: 21 | E77: ='Simple Data'!$D22 -> 68
D78: 22 | E78: ='Simple Data'!$D23 -> 68
D79: 23 | E79: ='Simple Data'!$D24 -> 70
D80: 24 | E80: ='Simple Data'!$D25 -> 70
D81: 25 | E81: ='Simple Data'!$D26 -> 70
D82: 26 | E82: ='Simple Data'!$D27 -> 70
D83: 27 | E83: ='Simple Data'!$D28 -> 70
D84: 28 | E84: ='Simple Data'!$D29 -> 68
D85: 29 | E85: ='Simple Data'!$D30 -> 70
D86: 30 | E86: ='Simple Data'!$D31 -> 70
D87: 31 | E87: ='Simple Data'!$D32 -> 70
D88: 32 | E88: ='Simple Data'!$D33 -> 70
D89: 33 | E89: ='Simple Data'!$D34 -> 70
D90: 34 | E90: ='Simple Data'!$D35 -> 70
D91: 35 | E91: ='Simple Data'!$D36 -> 70
D92: 36 | E92: ='Simple Data'!$D37 -> 70
D93: 37 | E93: ='Simple Data'!$D38 -> 70
D94: 38 | E94: ='Simple Data'!$D39 -> 70
D95: 39 | E95: ='Simple Data'!$D40 -> 70
D96: 40 | E96: ='Simple Data'!$D41 -> 70
D97: 41 | E97: ='Simple Data'!$D42 -> 70
D98: 42 | E98: ='Simple Data'!$D43 -> 70
D99: 43 | E99: ='Simple Data'!$D44 -> 70
D100: 44 | E100: ='Simple Data'!$D45 -> 70
D101: 45 | E101: ='Simple Data'!$D46 -> 70
D102: 46 | E102: ='Simple Data'!$D47 -> 70
D103: 47 | E103: ='Simple Data'!$D48 -> 70
D104: 48 | E104: ='Simple Data'!$D49 -> 70
D105: 49 | E105: ='Simple Data'!$D50 -> 70
D106: 50 | E106: ='Simple Data'!$D51 -> 70
D107: 51 | E107: ='Simple Data'!$D52 -> 70
D108: 52 | E108: ='Simple Data'!$D53 -> 70
D109: 53 | E109: ='Simple Data'!$D54 -> 68
D110: 54 | E110: ='Simple Data'!$D55 -> 70
D111: 55 | E111: ='Simple Data'!$D56 -> 70
D112: 56 | E112: ='Simple Data'!$D57 -> 70
D113: 57 | E113: ='Simple Data'!$D58 -> 70
D114: 58 | E114: ='Simple Data'!$D59 -> 70
D115: 59 | E115: ='Simple Data'!$D60 -> 70
D116: 60 | E116: ='Simple Data'!$D61 -> 70
D117: 61 | E117: ='Simple Data'!$D62 -> 68
D118: 62 | E118: ='Simple Data'!$D63 -> 70
D119: 63 | E119: ='Simple Data'!$D64 -> 70
D120: 64 | E120: ='Simple Data'!$D65 -> 70
D121: 65 | E121: ='Simple Data'!$D66 -> 67
D122: 66 | E122: ='Simple Data'!$D67 -> 70
D123: 67 | E123: ='Simple Data'!$D68 -> 70
D124: 68 | E124: ='Simple Data'!$D69 -> 70
D125: 69 | E125: ='Simple Data'!$D70 -> 70
D126: 70 | E126: ='Simple Data'!$D71 -> 70
D127: 71 | E127: ='Simple Data'!$D72 -> 70
D128: 72 | E128: ='Simple Data'!$D73 -> 70
D129: 73 | E129: ='Simple Data'!$D74 -> 70
D130: 74 | E130: ='Simple Data'!$D75 -> 68
D131: 75 | E131: ='Simple Data'!$D76 -> 70
D132: 76 | E132: ='Simple Data'!$D77 -> 70
D133: 77 | E133: ='Simple Data'!$D78 -> 70
D134: 78 | E134: ='Simple Data'!$D79 -> 71
D135: 79 | E135: ='Simple Data'!$D80 -> 71
D136: 80 | E136: ='Simple Data'!$D81 -> 71
D137: 81 | E137: ='Simple Data'!$D82 -> 71
D138: 82 | E138: ='Simple Data'!$D83 -> 71
D139: 83 | E139: ='Simple Data'!$D84 -> 70
D140: 84 | E140: ='Simple Data'!$D85 -> 70
D141: 85 | E141: ='Simple Data'!$D86 -> 70
D142: 86 | E142: ='Simple Data'!$D87 -> 70
D143: 87 | E143: ='Simple Data'!$D88 -> 70
D144: 88 | E144: ='Simple Data'!$D89 -> 70
D145: 89 | E145: ='Simple Data'!$D90 -> 70
D146: 90 | E146: ='Simple Data'!$D91 -> 70
D147: 91 | E147: ='Simple Data'!$D92 -> 70
D148: 92 | E148: ='Simple Data'!$D93 -> 70
D149: 93 | E149: ='Simple Data'!$D94 -> 70
D150: 94 | E150: ='Simple Data'!$D95 -> 70
D151: 95 | E151: ='Simple Data'!$D96 -> 70
D152: 96 | E152: ='Simple Data'!$D97 -> 70
D153: 97 | E153: ='Simple Data'!$D98 -> 70
D154: 98 | E154: ='Simple Data'!$D99 -> 70
D155: 99 | E155: ='Simple Data'!$D100 -> 70
D156: 100 | E156: ='Simple Data'!$D101 -> 70
D157: 101 | E157: ='Simple Data'!$D102 -> 70
D158: 102 | E158: ='Simple Data'!$D103 -> 70
D159: 103 | E159: ='Simple Data'!$D104 -> 70
D160: 104 | E160: ='Simple Data'!$D105 -> 68
D161: 105 | E161: ='Simple Data'!$D106 -> 70
D162: 106 | E162: ='Simple Data'!$D107 -> 70
D163: 107 | E163: ='Simple Data'!$D108 -> 68
D164: 108 | E164: ='Simple Data'!$D109 -> 70
D165: 109 | E165: ='Simple Data'!$D110 -> 70
D166: 110 | E166: ='Simple Data'!$D111 -> 70
D167: 111 | E167: ='Simple Data'!$D112 -> 70
D168: 112 | E168: ='Simple Data'!$D113 -> 70
D169: 113 | E169: ='Simple Data'!$D114 -> 70
D170: 114 | E170: ='Simple Data'!$D115 -> 70
D171: 115 | E171: ='Simple Data'!$D116 -> 68
D172: 116 | E172: ='Simple Data'!$D117 -> 70
D173: 117 | E173: ='Simple Data'!$D118 -> 70
D174: 118 | E174: ='Simple Data'!$D119 -> 68
D175: 119 | E175: ='Simple Data'!$D120 -> 68
D176: 120 | E176: ='Simple Data'!$D121 -> 70
D177: 121 | E177: ='Simple Data'!$D122 -> 70
D178: 122 | E178: ='Simple Data'!$D123 -> 70
D179: 123 | E179: ='Simple Data'!$D124 -> 70
D180: 124 | E180: ='Simple Data'!$D125 -> 68
D181: 125 | E181: ='Simple Data'!$D126 -> 68
D182: 126 | E182: ='Simple Data'!$D127 -> 70
D183: 127 | E183: ='Simple Data'!$D128 -> 70
D184: 128 | E184: ='Simple Data'!$D129 -> 68
D185: 129 | E185: ='Simple Data'!$D130 -> 70
D186: 130 | E186: ='Simple Data'!$D131 -> 70
D187: 131 | E187: ='Simple Data'!$D132 -> 70
D188: 132 | E188: ='Simple Data'!$D133 -> 70
D189: 133 | E189: ='Simple Data'!$D134 -> 70
D190: 134 | E190: ='Simple Data'!$D135 -> 68
D191: 135 | E191: ='Simple Data'!$D136 -> 70
D192: 136 | E192: ='Simple Data'!$D137 -> 70
D193: 137 | E193: ='Simple Data'!$D138 -> 70
D194: 138 | E194: ='Simple Data'!$D139 -> 70
D195: 139 | E195: ='Simple Data'!$D140 -> 70
D196: 140 | E196: ='Simple Data'!$D141 -> 70
D197: 141 | E197: ='Simple Data'!$D142 -> 70
D198: 142 | E198: ='Simple Data'!$D143 -> 70
D199: 143 | E199: ='Simple Data'!$D144 -> 70
D200: 144 | E200: ='Simple Data'!$D145 -> 70
D201: 145 | E201: ='Simple Data'!$D146 -> 70
D202: 146 | E202: ='Simple Data'!$D147 -> 70
D203: 147 | E203: ='Simple Data'!$D148 -> 70
D204: 148 | E204: ='Simple Data'!$D149 -> 70
D205: 149 | E205: ='Simple Data'!$D150 -> 71
D206: 150 | E206: ='Simple Data'!$D151 -> 70
D207: 151 | E207: ='Simple Data'!$D152 -> 68
D208: 152 | E208: ='Simple Data'!$D153 -> 70
D209: 153 | E209: ='Simple Data'!$D154 -> 70
D210: 154 | E210: ='Simple Data'!$D155 -> 70
D211: 155 | E211: ='Simple Data'!$D156 -> 70
D212: 156 | E212: ='Simple Data'!$D157 -> 70
D213: 157 | E213: ='Simple Data'!$D158 -> 70
D214: 158 | E214: ='Simple Data'!$D159 -> 70
D215: 159 | E215: ='Simple Data'!$D160 -> 70
D216: 160 | E216: ='Simple Data'!$D161 -> 58
D217: 161 | E217: ='Simple Data'!$D162 -> 51
D218: 162 | E218: ='Simple Data'!$D163 -> 46
D219: 163 | E219: ='Simple Data'!$D164 -> 41
D220: 164 | E220: ='Simple Data'!$D165 -> 32
D221: 165 | E221: ='Simple Data'!$D166 -> 23
D222: 166 | E222: ='Simple Data'!$D167 -> 20
D223: 167 | E223: ='Simple Data'!$D168 -> 20
... 34 more rows
